bitfinex/quotes_SOLUSD_20230110
["timestamp","ask_amount","ask_price","bid_price","bid_amount"]
[1673364041083,65.78,16.388,16.369,20.0]
[1673364041310,65.78,16.388,16.37,16.95535715]
[1673364041734,37.0,16.387,16.366,45.84]
[1673364041942,65.78,16.386,16.365,62.79535715]
[1673364042132,65.78,16.386,16.366,20.0]
[1673364042133,20.0,16.385,16.366,20.0]
[1673364042346,45.79,16.384,16.366,20.0]
[1673364042608,20.0,16.383,16.366,20.0]
[1673364042767,20.0,16.383,16.366,36.95535715]
[1673364043104,20.0,16.383,16.365,45.84]
[1673364043408,62.79,16.382,16.362,62.80535715]
[1673364043623,20.0,16.38,16.362,16.95535715]
[1673364043813,20.0,16.378,16.362,16.95535715]
[1673364044235,108.1523,16.379,16.362,16.95535715]
[1673364044451,20.0,16.378,16.362,16.95535715]
[1673364044870,108.1523,16.379,16.362,16.95535715]
[1673364045093,20.0,16.378,16.362,16.95535715]
[1673364045289,108.1523,16.379,16.363,45.85]
[1673364045626,108.1523,16.379,16.363,62.80535715]
[1673364045812,45.81,16.378,16.363,16.95535715]
[1673364046144,153.9523,16.379,16.363,16.95535715]
[1673364046371,108.1523,16.379,16.363,16.95535715]
[1673364046565,20.0,16.378,16.356,45.87]
[1673364046775,20.0,16.378,16.357,20.0]
[1673364046776,45.81,16.377,16.357,20.0]
[1673364046966,45.81,16.377,16.357,36.95535715]
[1673364047174,108.1523,16.379,16.357,36.95535715]
[1673364047175,108.1523,16.379,16.358,16.95535715]
[1673364047391,153.9523,16.379,16.36,23.73]
[1673364047601,108.1523,16.379,16.361,45.85]
[1673364047830,108.1523,16.379,16.362,20.0]
[1673364048028,108.1523,16.379,16.363,45.85]
[1673364048232,108.1523,16.379,16.364,37.0]
[1673364048764,108.1523,16.379,16.365,16.95535715]
[1673364048969,108.1523,16.379,16.366,17.0]
[1673364049815,20.0,16.378,16.359,20.0]
[1673364050027,45.81,16.377,16.359,20.0]
[1673364050230,45.81,16.377,16.358,45.86]
[1673364050447,45.81,16.377,16.357,20.0]
[1673364050653,20.0,16.376,16.357,36.95535715]
[1673364050868,65.81,16.375,16.357,36.95535715]
[1673364051062,20.0,16.374,16.357,20.0]
[1673364051279,45.82,16.373,16.357,36.95535715]
[1673364051501,20.0,16.372,16.357,36.95535715]
[1673364052135,20.0,16.375,16.357,36.95535715]
[1673364052340,45.82,16.374,16.357,36.95535715]
[1673364052550,20.0,16.373,16.357,36.95535715]
[1673364052756,45.82,16.374,16.357,36.95535715]
[1673364052972,45.81,16.377,16.358,17.0]
[1673364053170,45.81,16.377,16.358,33.95535715]
[1673364053387,20.0,16.376,16.359,36.95535715]
[1673364053802,20.0,16.376,16.359,20.0]
[1673364054029,20.0,16.376,16.357,65.86]
[1673364054030,45.81,16.375,16.357,20.0]
[1673364054233,45.81,16.375,16.358,20.0]
[1673364054642,45.81,16.375,16.357,20.0]
[1673364054849,45.81,16.377,16.355,51.7996898]
[1673364055067,17.0,16.376,16.355,22.88504695]
[1673364055277,45.81,16.375,16.355,5.9296898]
[1673364055488,37.0,16.374,16.355,5.9296898]
[1673364055715,45.82,16.373,16.355,5.9296898]
[1673364055924,20.0,16.372,16.355,5.9296898]
[1673364056122,163.837,16.371,16.355,5.9296898]
[1673364056652,163.837,16.371,16.355,22.88504695]
[1673364056862,118.007,16.371,16.355,22.88504695]
[1673364057080,69.56,16.37,16.355,5.9296898]
[1673364057387,106.53,16.37,16.355,5.9296898]
[1673364057603,20.0,16.369,16.355,5.9296898]
[1673364057816,65.83,16.368,16.355,5.9296898]
[1673364058026,82.83,16.368,16.355,5.9296898]
[1673364058240,20.0,16.367,16.355,5.9296898]
[1673364058443,65.84,16.366,16.355,5.9296898]
[1673364059070,45.84,16.366,16.355,5.9296898]
[1673364059276,45.83,16.37,16.355,5.9296898]
[1673364059813,45.81,16.375,16.355,5.9296898]
[1673364060027,45.81,16.375,16.356,17.0]
[1673364060343,20.0,16.37,16.355,5.9296898]
[1673364060543,45.83,16.369,16.355,5.9296898]
[1673364060764,20.0,16.368,16.355,5.9296898]
[1673364061263,45.83,16.369,16.355,5.9296898]
[1673364061484,45.81,16.375,16.355,5.9296898]
[1673364061684,45.81,16.376,16.357,20.0]
[1673364062108,20.0,16.375,16.357,20.0]
[1673364062337,45.82,16.374,16.357,20.0]
[1673364062738,20.0,16.373,16.355,5.9296898]
[1673364062949,45.82,16.372,16.355,5.9296898]
[1673364063275,152.4877,16.371,16.355,5.9296898]
[1673364063472,45.83,16.37,16.355,5.9296898]
[1673364063902,69.56,16.37,16.355,5.9296898]
[1673364064328,115.4877,16.371,16.355,5.9296898]
[1673364064649,115.4877,16.371,16.356,20.0]
[1673364065254,20.0,16.37,16.355,5.9296898]
[1673364065465,65.83,16.37,16.355,5.9296898]
[1673364066738,184.48,16.37,16.355,5.9296898]
[1673364067062,17.0,16.369,16.355,5.9296898]
[1673364067277,20.0,16.367,16.355,5.9296898]
[1673364067486,65.84,16.366,16.355,5.9296898]
[1673364067801,20.0,16.365,16.355,5.9296898]
[1673364068010,65.84,16.364,16.355,5.9296898]
[1673364068332,82.84,16.364,16.355,8.98e-05]
[1673364068518,20.0,16.363,16.355,8.98e-05]
[1673364068728,82.85,16.362,16.355,8.98e-05]
[1673364068973,20.0,16.361,16.355,8.98e-05]
[1673364069194,82.86,16.36,16.355,8.98e-05]
[1673364069499,20.0,16.359,16.355,8.98e-05]
[1673364070111,133.7112,16.361,16.355,8.98e-05]
[1673364070342,20.0,16.36,16.355,8.98e-05]
[1673364070871,133.7112,16.361,16.355,8.98e-05]
[1673364072020,45.86,16.36,16.355,8.98e-05]
[1673364072425,17.0,16.359,16.355,8.98e-05]
[1673364072630,85.86,16.358,16.355,8.98e-05]
[1673364072845,17.0,16.357,16.355,8.98e-05]
[1673364073065,65.87,16.356,16.355,8.98e-05]
[1673364073286,82.87,16.356,16.355,8.98e-05]
[1673364073605,108.50814296,16.356,16.355,8.98e-05]
[1673364073792,342.31822917,16.356,16.332,20.0]
[1673364074000,23.64,16.35,16.331,5.9296898]
[1673364074206,23.64,16.35,16.332,22.48903618]
[1673364074207,52.96989,16.349,16.332,22.48903618]
[1673364074418,52.96989,16.349,16.333,20.0]
[1673364074419,20.0,16.349,16.333,20.0]
[1673364074632,20.0,16.349,16.332,22.48903618]
[1673364075059,45.89,16.348,16.332,22.48903618]
[1673364075580,40.0,16.347,16.332,22.48903618]
[1673364075787,45.9,16.346,16.332,22.48903618]
[1673364076321,20.0,16.344,16.332,22.48903618]
[1673364076858,20.0,16.345,16.332,22.48903618]
[1673364077051,20.0,16.347,16.332,22.48903618]
[1673364077256,17.0,16.346,16.332,22.48903618]
[1673364077466,20.0,16.345,16.331,5.9296898]
[1673364077995,20.0,16.343,16.331,5.9296898]
[1673364078318,20.0,16.342,16.331,5.9296898]
[1673364078527,20.0,16.341,16.331,5.9296898]
[1673364078959,20.0,16.342,16.331,5.9296898]
[1673364079162,45.89,16.348,16.332,62.93]
[1673364079375,20.0,16.35,16.333,20.0]
[1673364079568,20.0,16.35,16.334,62.93]
[1673364079983,45.89,16.349,16.331,5.9296898]
[1673364080447,20.0,16.348,16.331,5.9296898]
[1673364080638,45.89,16.347,16.331,5.9296898]
[1673364080838,20.0,16.345,16.331,5.9296898]
[1673364081268,40.0,16.346,16.331,5.9296898]
[1673364081479,20.0,16.346,16.331,5.9296898]
[1673364082305,45.9,16.345,16.331,5.9296898]
[1673364082530,40.0,16.344,16.331,5.9296898]
[1673364082742,13.38037207,16.34,16.331,5.9296898]
[1673364082935,45.91,16.339,16.331,5.9296898]
[1673364083146,20.0,16.338,16.331,5.9296898]
[1673364083357,20.0,16.336,16.331,5.9296898]
[1673364083588,20.0,16.336,16.313,45.99]
[1673364083589,20.0,16.334,16.313,45.99]
[1673364083802,19.0,16.333,16.314,20.0]
[1673364083988,19.0,16.333,16.315,45.98]
[1673364084201,64.93,16.333,16.314,45.99]
[1673364084530,20.0,16.332,16.315,16.95535715]
[1673364084739,20.0,16.332,16.314,45.99]
[1673364084740,20.0,16.332,16.313,45.99]
[1673364084949,20.0,16.332,16.315,16.95535715]
[1673364085155,20.0,16.336,16.312,20.0]
[1673364085156,132.0439,16.339,16.316,45.98]
[1673364085369,112.0439,16.339,16.321,20.0]
[1673364085567,136.5625,16.344,16.321,20.0]
[1673364085568,20.0,16.344,16.322,45.96]
[1673364085781,43.67,16.35,16.322,45.96]
[1673364085782,45.89,16.347,16.322,45.96]
[1673364086008,65.89,16.348,16.323,16.95535715]
[1673364086207,65.89,16.348,16.324,64.88]
[1673364086413,45.89,16.348,16.326,20.0]
[1673364086616,45.88,16.35,16.33,23.73]
[1673364086830,64.43825296,16.352,16.331,62.94]
[1673364087145,18.55825296,16.35,16.331,62.94]
[1673364087366,20.0,16.348,16.331,62.94]
[1673364087900,38.55825296,16.348,16.331,62.94]
[1673364088224,38.55825296,16.348,16.331,45.94]
[1673364088623,38.55825296,16.348,16.326,20.0]
[1673364088624,65.89,16.347,16.327,45.95]
[1673364089038,18.55825296,16.346,16.327,45.95]
[1673364089247,37.0,16.345,16.328,20.0]
[1673364089458,20.0,16.345,16.328,20.0]
[1673364089673,20.0,16.345,16.329,45.94]
[1673364089888,20.0,16.345,16.328,20.0]
[1673364090098,117.1812,16.344,16.327,45.95]
[1673364090306,40.0,16.343,16.323,45.96]
[1673364090515,121.45825296,16.343,16.322,45.96]
[1673364090731,18.55825296,16.342,16.322,45.96]
[1673364090949,18.55825296,16.342,16.319,45.97]
[1673364090950,23.7,16.34,16.319,45.97]
[1673364091140,62.91,16.339,16.319,45.97]
[1673364091345,20.0,16.338,16.319,45.97]
[1673364091587,62.92,16.337,16.315,45.98]
[1673364091793,20.0,16.336,16.315,45.98]
[1673364092128,45.93,16.335,16.316,20.0]
[1673364092319,20.0,16.334,16.318,20.0]
[1673364092528,20.0,16.334,16.317,45.98]
[1673364093175,20.0,16.334,16.318,20.0]
[1673364093893,108.5428,16.339,16.32,23.51]
[1673364094109,108.5428,16.339,16.321,62.97]
[1673364094319,108.5428,16.339,16.322,20.0]
[1673364094530,108.5428,16.339,16.323,62.96]
[1673364094733,108.5428,16.339,16.322,45.96]
[1673364095064,20.0,16.338,16.321,20.0]
[1673364095386,20.0,16.338,16.319,62.92535715]
[1673364095710,65.92,16.338,16.317,45.98]
[1673364095893,65.92,16.338,16.318,37.0]
[1673364096104,17.0,16.337,16.319,20.0]
[1673364096314,65.92,16.338,16.319,20.0]
[1673364096519,65.92,16.338,16.319,82.92535715]
[1673364096730,20.0,16.338,16.319,82.92535715]
[1673364097145,20.0,16.338,16.32,16.95535715]
[1673364097352,20.0,16.338,16.321,17.0]
[1673364098007,20.0,16.338,16.32,16.95535715]
[1673364098201,20.0,16.336,16.313,164.3932]
[1673364098405,20.0,16.336,16.313,45.99]
[1673364098406,178.8339,16.335,16.313,45.99]
[1673364098621,20.0,16.329,16.308,46.0]
[1673364098831,62.95,16.328,16.309,16.95535715]
[1673364099165,17.0,16.328,16.311,20.0]
[1673364099368,162.7871,16.329,16.311,20.0]
[1673364099780,20.0,16.328,16.31,20.0]
[1673364099991,20.0,16.328,16.309,66.0]
[1673364099992,37.0,16.328,16.309,66.0]
[1673364100195,20.0,16.326,16.309,20.0]
[1673364100406,20.0,16.325,16.308,46.0]
[1673364100631,20.0,16.325,16.301,20.0]
[1673364100632,62.96,16.324,16.301,20.0]
[1673364100843,20.0,16.323,16.302,162.4217]
[1673364101155,45.96,16.322,16.305,16.95535715]
[1673364101369,20.0,16.323,16.306,46.01]
[1673364101566,20.0,16.323,16.305,16.95535715]
[1673364101784,20.0,16.323,16.304,46.01]
[1673364101992,65.96,16.323,16.304,46.01]
[1673364102320,23.61,16.32,16.292,66.05]
[1673364102630,45.97,16.319,16.293,117.8652]
[1673364102873,28.26128871,16.319,16.308,16.95535715]
[1673364103083,20.0,16.325,16.309,20.0]
[1673364103278,112.5567,16.326,16.309,20.0]
[1673364103501,116.8471,16.329,16.31,69.63]
[1673364103819,45.93,16.332,16.311,20.0]
[1673364104007,45.93,16.332,16.312,46.95]
[1673364104214,20.0,16.33,16.313,17.0]
[1673364104429,65.94,16.33,16.313,17.0]
[1673364104658,20.0,16.33,16.313,17.0]
[1673364104863,20.0,16.33,16.312,17.0]
[1673364105603,20.0,16.33,16.313,16.95535715]
[1673364105816,53.01989,16.329,16.3,23.6]
[1673364106019,27.07989,16.328,16.302,20.0]
[1673364106341,20.0,16.33,16.302,36.95535715]
[1673364106531,20.0,16.33,16.308,62.95535715]
[1673364106863,20.0,16.332,16.31,23.73]
[1673364107080,20.0,16.332,16.312,20.0]
[1673364107269,20.0,16.332,16.313,62.99]
[1673364107482,177.2008,16.333,16.313,79.94535715]
[1673364107809,725.14538279,16.377,16.32,23.63]
[1673364107810,45.9,16.343,16.32,23.63]
[1673364108018,118.3397,16.342,16.321,65.97]
[1673364108215,20.0,16.341,16.322,37.0]
[1673364108425,20.0,16.341,16.323,45.96]
[1673364108656,20.0,16.341,16.324,17.0]
[1673364108848,118.3397,16.342,16.324,17.0]
[1673364109065,118.3397,16.342,16.324,33.95535715]
[1673364109265,118.3397,16.342,16.324,17.0]
[1673364109476,118.3397,16.342,16.324,62.96]
[1673364109685,20.0,16.341,16.324,17.0]
[1673364109905,20.0,16.34,16.324,17.0]
[1673364110230,20.0,16.34,16.323,17.0]
[1673364110443,20.0,16.34,16.322,45.96]
[1673364110760,45.91,16.339,16.321,16.95535715]
[1673364111084,65.91,16.34,16.322,62.91535715]
[1673364111287,17.0,16.339,16.322,45.96]
[1673364111497,20.0,16.34,16.318,16.95535715]
[1673364111708,20.0,16.34,16.319,65.97]
[1673364111922,84.46825296,16.339,16.316,20.0]
[1673364112131,40.0,16.341,16.318,16.95535715]
[1673364112354,40.0,16.341,16.319,45.97]
[1673364112546,20.0,16.34,16.32,20.0]
[1673364112758,20.0,16.34,16.321,45.97]
[1673364113172,65.91,16.34,16.322,17.0]
[1673364113382,65.91,16.34,16.319,45.97]
[1673364113593,65.91,16.34,16.32,20.0]
[1673364113813,72.98989,16.34,16.32,20.0]
[1673364114027,20.0,16.338,16.32,20.0]
[1673364114218,45.92,16.337,16.319,45.97]
[1673364114434,23.73,16.33,16.314,45.99]
[1673364114645,45.94,16.329,16.309,164.1265]
[1673364114857,158.2971,16.335,16.309,164.1265]
[1673364115169,158.2971,16.335,16.31,20.0]
[1673364115170,20.0,16.334,16.31,20.0]
[1673364115384,62.93,16.333,16.311,45.99]
[1673364115703,20.0,16.332,16.312,20.0]
[1673364115911,45.94,16.331,16.312,20.0]
[1673364116124,20.0,16.33,16.312,20.0]
[1673364116972,17.0,16.329,16.313,17.0]
[1673364117182,45.95,16.328,16.309,181.08185715]
[1673364117386,45.94,16.329,16.309,135.08185715]
[1673364117596,17.0,16.328,16.31,20.0]
[1673364117812,45.95,16.327,16.31,20.0]
[1673364118009,45.95,16.327,16.31,36.95535715]
[1673364118220,45.94,16.33,16.312,20.0]
[1673364118635,17.0,16.329,16.312,20.0]
[1673364118863,45.95,16.328,16.313,17.0]
[1673364119068,17.0,16.329,16.311,20.0]
[1673364119589,17.0,16.329,16.311,36.95535715]
[1673364119590,45.95,16.328,16.311,36.95535715]
[1673364119798,65.94,16.331,16.311,82.94535715]
[1673364120003,17.0,16.33,16.311,82.94535715]
[1673364120231,62.94,16.33,16.311,20.0]
[1673364120438,62.94,16.33,16.312,45.99]
[1673364120634,45.94,16.33,16.312,45.99]
[1673364120845,20.0,16.331,16.312,45.99]
[1673364121056,17.0,16.33,16.313,20.0]
[1673364121268,20.0,16.33,16.312,45.99]
[1673364121493,17.0,16.329,16.311,65.99]
[1673364121700,17.0,16.329,16.311,20.0]
[1673364122013,20.0,16.327,16.308,46.0]
[1673364122223,45.95,16.326,16.305,46.01]
[1673364122429,20.0,16.327,16.309,20.0]
[1673364122644,20.0,16.327,16.31,46.0]
[1673364122857,20.0,16.327,16.311,17.0]
[1673364123593,20.0,16.327,16.308,46.0]
[1673364123802,20.0,16.327,16.309,20.0]
[1673364124231,45.94,16.33,16.31,46.0]
[1673364124439,45.94,16.331,16.311,20.0]
[1673364124640,20.0,16.33,16.312,45.99]
[1673364124845,20.0,16.33,16.313,20.0]
[1673364125068,20.0,16.33,16.314,45.99]
[1673364125271,20.0,16.332,16.315,17.96]
[1673364125480,45.92,16.337,16.315,18.92]
[1673364125709,20.0,16.339,16.315,18.92]
[1673364125710,110.7376,16.338,16.316,65.98]
[1673364126028,110.7376,16.338,16.318,20.0]
[1673364126246,110.7376,16.338,16.319,82.97]
[1673364126423,64.47825296,16.337,16.319,17.0]
[1673364126642,20.0,16.334,16.319,17.0]
[1673364126958,20.0,16.333,16.319,17.0]
[1673364127166,37.0,16.332,16.315,20.0]
[1673364127370,20.0,16.332,16.315,20.0]
[1673364128755,20.0,16.332,16.314,45.99]
[1673364129282,17.0,16.331,16.313,65.99]
[1673364129482,128.1849,16.33,16.313,65.99]
[1673364130440,128.1849,16.33,16.313,45.99]
[1673364130643,17.0,16.329,16.312,45.99]
[1673364130853,20.0,16.329,16.312,20.0]
[1673364131175,45.95,16.328,16.312,20.0]
[1673364131372,38.55825296,16.329,16.312,20.0]
[1673364131577,17.0,16.328,16.312,20.0]
[1673364131788,18.55825296,16.329,16.313,17.0]
[1673364132008,128.1849,16.33,16.313,45.99]
[1673364132231,17.0,16.329,16.311,159.9482]
[1673364132431,17.0,16.329,16.311,113.9582]
[1673364132941,65.95,16.328,16.311,113.9582]
[1673364133144,17.0,16.327,16.311,113.9582]
[1673364133357,110.2056,16.326,16.312,17.0]
[1673364134830,62.95,16.325,16.303,46.02]
[1673364135036,20.0,16.324,16.303,46.02]
[1673364135270,45.96,16.323,16.301,161.1082]
[1673364135483,40.0,16.322,16.302,20.0]
[1673364135670,45.97,16.321,16.302,20.0]
[1673364135886,20.0,16.32,16.302,20.0]
[1673364136306,40.0,16.32,16.302,20.0]
[1673364136530,40.0,16.32,16.301,161.1082]
[1673364136728,20.0,16.319,16.301,161.1082]
[1673364137683,65.97,16.319,16.301,115.0882]
[1673364137904,65.97,16.319,16.302,20.0]
[1673364138320,17.0,16.318,16.301,115.0882]
[1673364138744,65.97,16.319,16.302,20.0]
[1673364139154,65.97,16.319,16.301,115.0882]
[1673364139989,17.0,16.318,16.301,115.0882]
[1673364140200,45.98,16.317,16.301,115.0882]
[1673364140410,160.5366,16.317,16.302,20.0]
[1673364140645,114.5566,16.317,16.302,20.0]
[1673364140841,114.5566,16.317,16.302,66.02]
[1673364141584,114.5566,16.317,16.302,20.0]
[1673364142219,20.0,16.316,16.302,20.0]
[1673364143164,20.0,16.316,16.301,161.1082]
[1673364143476,20.0,16.316,16.302,20.0]
[1673364143985,20.0,16.316,16.307,3.7825566]
[1673364145056,65.98,16.316,16.307,3.7825566]
[1673364145664,20.0,16.316,16.307,3.7825566]
[1673364146100,45.98,16.315,16.307,3.7825566]
[1673364146511,20.0,16.314,16.307,3.7825566]
[1673364146732,65.99,16.313,16.307,3.7825566]
[1673364147140,20.0,16.312,16.307,3.7825566]
[1673364147566,20.0,16.311,16.307,3.7825566]
[1673364150101,20.0,16.31,16.307,3.7825566]
[1673364150494,20.0,16.31,16.296,20.0]
[1673364151347,20.0,16.31,16.294,20.0]
[1673364151348,20.0,16.31,16.294,46.04]
[1673364151660,20.0,16.31,16.294,20.0]
[1673364152706,20.0,16.31,16.295,46.04]
[1673364152921,20.0,16.31,16.294,20.0]
[1673364153232,20.0,16.31,16.295,17.0]
[1673364153668,20.0,16.31,16.294,20.0]
[1673364154605,20.0,16.31,16.293,164.4686]
[1673364154815,17.0,16.309,16.293,118.4286]
[1673364155223,20.0,16.308,16.293,118.4286]
[1673364155645,20.0,16.308,16.294,17.5]
[1673364155857,20.0,16.308,16.295,17.0]
[1673364157225,20.0,16.308,16.294,17.0]
[1673364157653,20.0,16.308,16.293,17.0]
[1673364157847,20.0,16.309,16.293,17.0]
[1673364158058,20.0,16.309,16.294,20.0]
[1673364158268,20.0,16.309,16.295,17.0]
[1673364159753,20.0,16.309,16.292,66.05]
[1673364160077,20.0,16.309,16.292,20.0]
[1673364160496,20.0,16.307,16.291,25.9770091]
[1673364160691,66.0,16.307,16.291,5.9770091]
[1673364160895,20.0,16.307,16.291,5.9770091]
[1673364162051,137.5004,16.311,16.292,46.05]
[1673364162262,20.0,16.31,16.294,20.0]
[1673364162470,20.0,16.31,16.295,17.0]
[1673364162682,66.0,16.31,16.295,17.0]
[1673364162917,20.0,16.31,16.295,17.0]
[1673364163431,20.0,16.311,16.296,1.92]
[1673364163644,45.98,16.315,16.296,86.04]
[1673364163857,112.2513,16.316,16.297,17.0]
[1673364164072,112.2513,16.316,16.298,46.03]
[1673364164259,112.2513,16.316,16.299,17.0]
[1673364164469,20.0,16.315,16.3,20.0]
[1673364164704,100.5613,16.316,16.301,17.0]
[1673364165209,20.0,16.315,16.301,17.0]
[1673364165415,395.0,16.324,16.301,17.0]
[1673364165646,20.0,16.323,16.302,67.94]
[1673364165859,20.0,16.322,16.304,20.0]
[1673364166173,20.0,16.321,16.305,63.81924088]
[1673364166388,20.0,16.321,16.306,0.96]
[1673364166586,20.0,16.321,16.307,0.88262411]
[1673364166799,20.0,16.323,16.307,34.83798126]
[1673364167117,20.0,16.322,16.307,34.83798126]
[1673364167309,20.0,16.321,16.307,17.88262411]
[1673364167519,395.0,16.324,16.307,80.83798126]
[1673364167735,156.1556,16.326,16.308,20.0]
[1673364167945,110.2056,16.326,16.309,64.72712871]
[1673364168157,110.2056,16.326,16.31,20.0]
[1673364168371,110.2056,16.326,16.312,20.0]
[1673364168583,110.2056,16.326,16.313,18.72712871]
[1673364169529,20.0,16.325,16.308,18.68248586]
[1673364169723,65.95,16.325,16.308,1.72712871]
[1673364169936,65.95,16.325,16.305,131.59255715]
[1673364170145,65.95,16.325,16.306,20.6340249]
[1673364170373,20.0,16.324,16.306,20.6340249]
[1673364170904,20.0,16.323,16.307,17.0]
[1673364171115,65.96,16.323,16.308,0.68011722]
[1673364171299,65.96,16.323,16.305,131.59255715]
[1673364171634,135.9905,16.322,16.305,114.6372]
[1673364171843,135.9905,16.322,16.306,20.0]
[1673364172670,135.9905,16.322,16.307,17.0]
[1673364172883,20.0,16.321,16.307,17.0]
[1673364173090,20.0,16.321,16.306,17.0]
[1673364173313,45.97,16.32,16.306,17.0]
[1673364173524,20.0,16.321,16.306,17.0]
[1673364173924,20.0,16.322,16.307,20.0]
[1673364174144,45.96,16.324,16.306,16.95535715]
[1673364174145,20.0,16.323,16.306,16.95535715]
[1673364174355,20.0,16.323,16.293,30.68548834]
[1673364174356,43.61,16.32,16.303,36.7649765]
[1673364174678,65.97,16.319,16.296,16.95535715]
[1673364174868,20.0,16.318,16.297,20.0]
[1673364175083,65.98,16.317,16.297,20.0]
[1673364175303,20.0,16.315,16.297,20.0]
[1673364175503,20.0,16.314,16.297,20.0]
[1673364176361,20.0,16.314,16.298,17.0]
[1673364177715,20.0,16.314,16.298,33.95535715]
[1673364177937,20.0,16.314,16.297,20.0]
[1673364178886,45.99,16.313,16.297,20.0]
[1673364179096,40.0,16.312,16.295,36.95535715]
[1673364179524,19.5,16.312,16.295,36.95535715]
[1673364179722,45.99,16.314,16.297,20.0]
[1673364179933,65.98,16.315,16.298,17.0]
[1673364180144,17.0,16.314,16.298,17.0]
[1673364180481,65.98,16.315,16.298,17.0]
[1673364180789,65.98,16.315,16.297,20.0]
[1673364181100,65.98,16.315,16.294,184.8098]
[1673364181101,20.0,16.313,16.294,164.8098]
[1673364181317,20.0,16.311,16.294,118.7698]
[1673364181732,20.0,16.31,16.295,20.0]
[1673364182767,20.0,16.311,16.295,20.0]
[1673364183198,20.0,16.312,16.295,20.0]
[1673364183614,20.0,16.312,16.296,46.04]
[1673364183826,20.0,16.312,16.297,17.0]
[1673364184668,45.99,16.311,16.297,17.0]
[1673364184888,20.0,16.31,16.296,17.0]
[1673364185412,20.0,16.31,16.296,14.5]
[1673364185626,20.0,16.312,16.297,20.0]
[1673364186367,20.0,16.312,16.296,14.5]
[1673364187609,20.0,16.312,16.297,18.88648485]
[1673364187817,45.98,16.315,16.298,40.0]
[1673364188035,160.1801,16.316,16.298,103.03]
[1673364188345,20.0,16.315,16.298,57.0]
[1673364188564,20.0,16.315,16.298,37.0]
[1673364188767,45.99,16.314,16.298,20.0]
[1673364189197,20.0,16.313,16.298,20.0]
[1673364190446,20.0,16.313,16.299,17.0]
[1673364191304,40.0,16.313,16.299,17.0]
[1673364191516,45.99,16.312,16.298,17.0]
[1673364191723,20.0,16.311,16.298,17.0]
[1673364191934,25.65,16.31,16.298,17.0]
[1673364192242,20.0,16.309,16.298,17.0]
[1673364192776,20.0,16.309,16.294,118.7698]
[1673364193178,20.0,16.309,16.291,52.0270091]
[1673364193388,295.6618,16.308,16.291,5.9770091]